bitfinex/quotes_ETHUSD_20240820
["timestamp","ask_amount","ask_price","bid_price","bid_amount"]
[1724179877071,0.15987963,2602.3,2602.1,2.3743]
[1724179878640,0.15987963,2602.3,2602.1,2.0851]
[1724179878981,0.15987963,2602.3,2602.1,2.317703]
[1724179879530,0.55,2602.2,2602.1,2.071303]
[1724179879866,0.70985671,2602.2,2602.1,1.912103]
[1724179880196,0.70985671,2602.2,2601.9,0.24093]
[1724179881206,0.70985671,2602.2,2601.5,19.68]
[1724179882535,0.70985671,2602.2,2601.5,23.52389]
[1724179882992,0.70985671,2602.2,2601.6,2.2777]
[1724179883195,0.55,2602.2,2601.6,2.1381]
[1724179883592,0.15988203,2602.1,2601.6,2.1381]
[1724179883804,0.55,2602.0,2601.7,2.566199]
[1724179884334,2.2835,2602.3,2601.7,2.566199]
[1724179884335,0.55,2602.2,2601.7,2.566199]
[1724179884693,0.15982167,2602.1,2601.7,2.566199]
[1724179884895,0.55,2602.0,2601.7,2.566199]
[1724179885095,0.55,2602.0,2601.8,0.3609299]
[1724179885335,0.55,2602.2,2601.8,0.3609299]
[1724179887506,0.15979785,2602.1,2601.8,0.3609299]
[1724179887844,0.55,2602.0,2601.8,0.3609299]
[1724179888248,0.15974063,2601.9,2601.8,0.3609299]
[1724179888447,0.70974063,2601.9,2601.8,0.3609299]
[1724179888662,0.55,2601.9,2601.8,0.3609299]
[1724179890152,0.55,2601.9,2601.6,2.1381]
[1724179890300,0.55,2602.1,2601.6,2.1381]
[1724179890505,0.15969333,2601.8,2601.6,2.1381]
[1724179890731,0.55,2601.7,2601.6,2.1381]
[1724179891261,1.628,2602.0,2601.6,2.1381]
[1724179891262,0.55,2601.9,2601.6,2.1381]
[1724179891615,0.15967891,2601.8,2601.6,2.1381]
[1724179891819,0.55,2601.7,2601.6,2.1381]
[1724179892240,0.55,2601.7,2601.6,2.736317]
[1724179895625,0.55,2601.7,2601.6,2.1381]
[1724179899348,0.55,2601.7,2601.6,2.0919]
[1724179902027,0.55,2601.7,2601.6,1.9518]
[1724179902674,0.55,2601.7,2601.3,5.4722]
[1724179902991,0.55,2601.7,2601.3,1.628]
[1724179903554,0.55,2601.7,2601.4,0.970176]
[1724179904289,0.55,2601.7,2601.2,4.22946]
[1724179904290,0.55,2601.7,2601.2,0.3852]
[1724179904492,0.15963386,2601.6,2601.1,7.41]
[1724179904697,0.55,2601.5,2601.1,7.41]
[1724179905100,0.15956807,2601.4,2601.1,7.41]
[1724179905283,0.15956807,2601.4,2601.1,11.14531554]
[1724179905451,0.55,2601.3,2601.1,11.14531554]
[1724179905651,0.55,2601.5,2601.1,11.14531554]
[1724179905890,0.15956807,2601.4,2601.1,11.14531554]
[1724179906095,0.55,2601.3,2601.1,11.14531554]
[1724179906261,0.55,2601.6,2601.3,2.4956]
[1724179906469,0.55,2601.8,2601.3,2.4956]
[1724179906665,0.15964086,2601.7,2601.3,2.4956]
[1724179906847,0.55,2601.6,2601.3,2.4956]
[1724179907286,0.15946829,2601.5,2601.1,7.41]
[1724179907482,0.55,2601.4,2601.1,7.41]
[1724179907870,0.159411,2601.3,2601.0,20.40953601]
[1724179908081,2.8488,2601.6,2601.0,20.40953601]
[1724179908271,0.15947679,2601.5,2601.0,20.40953601]
[1724179908466,0.15947679,2601.5,2601.1,17.91393601]
[1724179909070,1.628,2601.4,2601.1,17.91393601]
[1724179909274,1.628,2601.4,2600.6,2.297]
[1724179909275,2.4133,2601.2,2600.6,2.297]
[1724179909473,0.15929652,2601.1,2600.6,2.297]
[1724179909784,4.0413,2601.2,2600.6,4.9039536]
[1724179909995,2.4133,2601.2,2600.6,4.9039536]
[1724179910160,0.15926878,2601.1,2600.6,4.9039536]
[1724179910593,2.4133,2601.2,2600.6,4.9039536]
[1724179910968,4.08920302,2601.2,2600.4,4.0627]
[1724179911312,4.08920302,2601.2,2600.4,2.4347]
[1724179911313,1.628,2600.8,2600.4,2.4347]
[1724179911473,0.15890987,2601.1,2600.4,2.4347]
[1724179911474,1.628,2601.0,2600.4,2.4347]
[1724179911670,0.15932707,2600.9,2600.4,2.4347]
[1724179913211,0.55,2600.8,2600.4,2.4347]
[1724179913557,0.15925404,2600.7,2600.1,4.23112]
[1724179913757,0.15925404,2600.7,2600.2,2.4576]
[1724179914001,0.15925404,2600.7,2600.2,3.673862]
[1724179915817,0.15925404,2600.7,2600.2,2.4576]
[1724179915979,0.15925404,2600.7,2600.1,0.3852]
[1724179916494,3.15925404,2600.7,2600.1,0.3852]
[1724179916990,3.20715706,2600.7,2600.1,0.3852]
[1724179917196,3.15925404,2600.7,2600.1,0.3852]
[1724179917587,3.15925404,2600.7,2600.1,5.00117549]
[1724179917818,0.15925404,2600.7,2600.2,3.99]
[1724179918184,3.0,2600.9,2600.2,3.99]
[1724179918427,0.15874575,2600.6,2600.2,3.99]
[1724179918608,3.0,2600.9,2600.2,3.99]
[1724179918794,0.15873767,2600.5,2600.2,5.27373155]
[1724179919123,2.2811,2601.0,2600.4,1.628]
[1724179919628,0.15890541,2600.9,2600.2,12.96526155]
[1724179920008,0.15890541,2600.9,2600.2,9.11949155]
[1724179920229,0.15890541,2600.9,2600.2,12.96527155]
[1724179920432,0.15890541,2600.9,2600.3,5.2577047]
[1724179920741,0.15890541,2600.9,2600.5,2.3524]
[1724179920951,3.0,2601.1,2600.5,2.3524]
[1724179921099,0.15884636,2600.8,2600.5,2.3524]
[1724179921299,3.0,2601.1,2600.5,2.3524]
[1724179921513,0.15891218,2601.0,2600.5,3.27621447]
[1724179922500,0.15891218,2601.0,2600.6,1.628]
[1724179922701,2.2605,2601.5,2600.7,6.13501]
[1724179922901,2.2605,2601.5,2600.7,2.2899]
[1724179922902,1.628,2601.4,2600.7,2.2899]
[1724179923115,0.1589415,2601.3,2600.7,4.28412645]
[1724179923930,0.1589415,2601.3,2600.6,9.038]
[1724179923931,4.061,2601.1,2600.6,7.41]
[1724179924242,0.15901673,2601.2,2600.6,11.25523]
[1724179924443,4.061,2601.3,2600.6,12.88318]
[1724179924444,0.15895092,2601.0,2600.6,12.88318]
[1724179924601,2.433,2601.3,2600.7,1.62341945]
[1724179924799,5.433,2601.3,2600.7,1.62341945]
[1724179925011,0.15895185,2601.2,2600.7,1.62341945]
[1724179925413,5.433,2601.3,2600.7,1.62341945]
[1724179925750,1.628,2601.5,2600.8,6.27216]
[1724179925751,0.15895185,2601.2,2600.8,6.27216]
[1724179926044,4.061,2601.5,2600.9,0.78955795]
[1724179926359,0.70901766,2601.4,2600.8,6.27216]
[1724179926548,0.70901766,2601.4,2600.8,2.4272]
[1724179926755,0.15901766,2601.4,2600.8,6.27215]
[1724179927415,0.15901766,2601.4,2600.9,3.84482]
[1724179927651,0.15901766,2601.4,2600.8,6.27215]
[1724179927851,0.15901766,2601.4,2600.9,0.78955695]
[1724179928963,0.15901766,2601.4,2601.0,5.4726]
[1724179929124,0.15901766,2601.4,2601.1,0.07687999]
[1724179929450,5.3049,2601.8,2601.1,0.07687999]
[1724179929658,0.55,2601.7,2601.1,0.07687999]
[1724179929833,3.70919975,2601.7,2601.1,0.07687999]
[1724179930950,5.33719975,2601.7,2601.1,0.07687999]
[1724179931335,0.15919975,2601.7,2601.3,3.84416]
[1724179931562,3.9329,2601.8,2601.1,0.47110369]
[1724179931731,0.15920693,2601.6,2601.1,0.47110369]
[1724179931932,1.628,2601.6,2601.0,9.8152]
[1724179932132,0.15924612,2601.5,2601.0,9.8152]
[1724179932340,1.628,2601.6,2601.0,9.8152]
[1724179932561,0.15931821,2601.5,2601.0,9.8152]
[1724179932765,2.42611821,2601.5,2601.0,7.41]
[1724179933838,2.2668,2601.5,2601.0,7.41]
[1724179934040,0.15930243,2601.4,2601.0,9.0177487]
[1724179934276,2.2668,2601.5,2601.0,9.0177487]
[1724179934453,2.2668,2601.5,2601.0,1.6077487]
[1724179934735,0.15930243,2601.4,2600.9,4.63428695]
[1724179934947,2.2668,2601.5,2600.9,4.63428695]
[1724179935186,0.15930243,2601.4,2600.8,3.84495]
[1724179935406,2.2668,2601.5,2600.8,3.84495]
[1724179935566,0.15937315,2601.3,2600.8,3.84495]
[1724179935897,2.2668,2601.5,2600.9,2.51483694]
[1724179936095,2.255,2601.3,2600.7,19.68]
[1724179936300,1.628,2601.2,2600.6,2.7909]
[1724179936445,2.178,2601.2,2600.4,35.48436601]
[1724179936644,0.15935842,2601.1,2600.5,3.7112366]
[1724179936850,2.22590302,2601.2,2600.5,3.7112366]
[1724179937279,2.22590302,2601.2,2600.5,7.5566366]
[1724179937442,0.15936697,2601.1,2600.6,3.84525]
[1724179937649,0.15936697,2601.1,2600.7,6.31764]
[1724179937849,2.255,2601.3,2600.8,1.016289]
[1724179938059,1.628,2601.6,2600.8,4.861249]
[1724179938258,0.15912331,2601.2,2601.0,6.12083]
[1724179938558,3.0,2601.6,2601.0,2.2762]
[1724179938761,0.15911152,2601.1,2601.0,2.2762]
[1724179938963,3.0,2601.6,2601.0,3.1527199]
[1724179939145,5.3712,2601.7,2601.0,3.1527199]
[1724179939346,1.628,2601.4,2600.7,2.2762]
[1724179939573,2.4002,2601.3,2600.6,3.84525]
[1724179939756,2.5594724,2601.3,2600.6,3.84525]
[1724179939981,2.5594724,2601.3,2600.7,1.53168766]
[1724179940993,2.5594724,2601.3,2600.7,7.00477766]
[1724179942560,2.5594724,2601.3,2600.7,1.53168766]
[1724179944470,2.60737542,2601.3,2600.5,5.3392366]
[1724179945593,4.0858,2601.2,2600.5,3.7112366]
[1724179945793,4.245003,2601.2,2600.5,3.7112366]
[1724179945983,4.245003,2601.2,2600.6,1.49667666]
[1724179946185,4.0858,2601.2,2600.6,1.49667666]
[1724179946612,0.59790302,2601.1,2600.5,3.7112366]
[1724179946929,0.75707311,2601.1,2600.5,3.7112366]
[1724179947221,3.75707311,2601.1,2600.5,3.7112366]
[1724179947388,3.75707311,2601.1,2600.4,7.41]
[1724179947991,1.628,2601.0,2600.4,7.41]
[1724179948398,0.15910428,2600.9,2600.4,7.41]
[1724179950029,3.55,2601.1,2600.4,7.41]
[1724179950329,0.15907137,2600.8,2600.4,7.41]
[1724179950480,3.55,2601.1,2600.5,3.3109216]
[1724179950679,0.15903845,2600.7,2600.5,3.3109216]
[1724179950929,3.55,2601.1,2600.5,3.3109216]
[1724179951314,0.15913719,2601.0,2600.5,3.3109216]
[1724179951516,0.15913719,2601.0,2600.5,8.7843116]
[1724179951735,0.15913719,2601.0,2600.7,2.2863]
[1724179951900,2.4578,2601.2,2600.7,3.9143]
[1724179952094,3.0,2601.3,2600.7,3.9143]
[1724179952313,2.4315,2601.4,2600.7,3.9143]
[1724179952314,0.15904098,2601.1,2600.7,3.9143]
[1724179952625,3.0,2601.3,2600.7,2.2863]
[1724179952836,0.15903027,2601.0,2600.8,0.70099712]
[1724179953036,0.15903027,2601.0,2600.9,5.47282]
[1724179953342,0.40211778,2601.6,2600.9,5.47282]
[1724179953723,0.15919478,2601.5,2600.9,5.47282]
[1724179953922,0.15919478,2601.5,2601.0,0.61738171]
[1724179954231,0.15919478,2601.5,2600.6,0.87843116]
[1724179954232,1.628,2601.2,2600.6,0.87843116]
[1724179954398,2.3157,2601.1,2600.6,0.87843116]
[1724179954595,2.47500993,2601.1,2600.5,7.41]
[1724179954984,3.9952,2601.0,2600.0,11.25603]
[1724179955183,4.70444817,2601.0,2600.0,11.25603]
[1724179955387,4.70444817,2601.0,2600.2,3.84576]
[1724179955388,4.15444817,2601.0,2600.2,3.84576]
[1724179955626,4.15444817,2601.0,2600.2,5.134136]
[1724179955810,4.20235119,2601.0,2600.2,5.134136]
[1724179956127,4.20235119,2601.0,2600.2,1.288376]
[1724179956296,2.4389,2600.7,2600.2,1.288376]
[1724179961539,2.4389,2600.7,2600.3,0.5134366]
[1724179961739,2.3511,2601.1,2600.3,2.8710366]
[1724179961953,2.3511,2601.1,2600.4,3.84553]
[1724179962094,2.3511,2601.1,2600.3,2.8710366]
[1724179962290,0.15918274,2601.0,2600.4,0.83908626]
[1724179962489,3.15918274,2601.0,2600.3,2.8710366]
[1724179965223,0.15918274,2601.0,2600.5,3.84528]
[1724179965423,0.15918274,2601.0,2600.4,2.7433]
[1724179965617,2.3511,2601.4,2600.7,3.84502]
[1724179965951,2.3511,2601.4,2600.8,0.384502]
[1724179965952,0.15902516,2600.9,2600.8,0.384502]
[1724179966153,2.3511,2601.4,2600.8,0.384502]
[1724179966913,0.15912927,2601.3,2600.8,0.384502]
[1724179967325,2.3511,2601.4,2600.6,3.84526]
[1724179967527,0.15906028,2601.2,2600.6,3.84526]
[1724179968049,2.3511,2601.4,2600.6,3.84526]
[1724179968353,0.15903593,2601.1,2600.6,3.84526]
[1724179968558,2.3511,2601.4,2600.6,3.84526]
[1724179968863,0.15910174,2601.3,2600.7,1.548628]
[1724179969075,2.3055,2601.2,2600.5,7.41]
[1724179969204,2.4646121,2601.2,2600.5,7.41]
[1724179969939,2.4646121,2601.2,2600.5,11.2554]
[1724179970147,2.4646121,2601.2,2600.6,3.84519]
[1724179970345,2.3055,2601.2,2600.7,1.510059]
[1724179971055,0.15903007,2601.1,2600.7,1.510059]
[1724179971261,2.3055,2601.2,2600.7,1.510059]
[1724179971423,0.15900572,2601.0,2600.7,1.510059]
[1724179971632,2.3055,2601.2,2600.7,1.510059]
[1724179972043,0.15903863,2601.1,2600.7,1.510059]
[1724179972407,2.3055,2601.2,2600.8,0.5355309]
[1724179972605,3.0,2601.6,2600.8,2.9752309]
[1724179972606,2.2898,2601.4,2600.8,2.9752309]
[1724179972811,0.15897506,2601.1,2600.8,2.9752309]
[1724179973056,2.2898,2601.4,2600.8,2.9752309]
[1724179973213,0.15895071,2601.0,2600.8,2.9752309]
[1724179973414,2.2898,2601.4,2600.9,0.83303299]
[1724179973932,0.15904943,2601.3,2600.8,0.5355309]
[1724179986171,0.15904943,2601.3,2600.9,6.21345]
[1724179986486,3.0,2601.5,2600.9,6.21345]
[1724179986662,5.4259,2601.6,2600.9,6.21345]
[1724179986868,0.15905032,2601.4,2601.0,0.87646809]
[1724179987169,3.15908322,2601.5,2600.9,2.3687]
[1724179987475,0.15905032,2601.4,2600.9,2.3687]
[1724179987801,2.27,2601.3,2600.8,0.9212309]
[1724179988080,0.1589845,2601.2,2600.8,0.3857]
[1724179988573,2.27,2601.3,2600.8,0.3857]
[1724179988871,0.1589845,2601.2,2600.7,0.3857]
[1724179989075,0.1589845,2601.2,2600.5,11.4316]
[1724179989273,2.4925,2601.1,2600.5,7.41]
[1724179989496,2.65152372,2601.1,2600.5,7.41]
[1724179990085,2.4925,2600.8,2600.0,10.95166987]
[1724179990247,2.4925,2600.8,2600.2,1.63]
[1724179990431,2.4925,2600.8,2600.3,0.547599]
[1724179990627,0.15901044,2600.7,2600.3,0.547599]
[1724179991039,2.4925,2600.8,2600.0,12.58166987]
[1724179991239,0.15891981,2600.6,2600.0,16.42774987]
[1724179991559,2.4479,2600.6,2600.0,12.44900987]
[1724179991787,0.15895903,2600.5,2600.0,8.60286987]
[1724179991979,2.4479,2600.6,2600.1,1.40791699]
[1724179993265,2.4479,2600.6,2600.0,1.19286987]
[1724179993604,0.15890132,2600.5,2600.0,1.19286987]
[1724179993808,0.15890132,2600.5,2600.2,1.63]
[1724179994111,2.4479,2600.6,2600.2,1.63]
[1724179997320,2.4479,2600.6,2600.1,2.2624]
[1724179997534,2.4479,2600.6,2600.1,3.074831]
[1724179997837,0.1587859,2600.5,2600.1,0.812431]
[1724179998181,2.4479,2600.6,2600.1,0.812431]
[1724179998783,0.15879447,2600.5,2600.1,0.812431]
[1724179999592,2.4479,2600.6,2600.1,0.812431]
[1724179999906,2.4479,2600.6,2600.2,0.6288561]
[1724180000100,3.0,2600.8,2600.2,4.6326561]
[1724180000306,2.4568,2600.9,2600.2,4.6326561]
[1724180000620,0.15872279,2600.8,2600.2,4.6326561]
[1724180000930,3.15872279,2600.8,2600.2,4.6326561]
[1724180001158,3.15872279,2600.8,2600.3,0.96767571]
[1724180001489,3.15872279,2600.8,2600.2,0.6288561]
[1724180003142,2.3186,2600.7,2600.0,7.84995]
[1724180003540,0.15877139,2600.6,2600.0,7.84995]
[1724180003957,2.3186,2600.7,2600.0,7.84995]
[1724180004243,0.15878181,2600.6,2600.0,7.84995]
[1724180004447,0.15878181,2600.6,2599.9,4.23198]
[1724180004617,3.9486,2600.7,2600.0,2.3775916]
[1724180004816,0.15879037,2600.6,2600.0,2.3775916]
[1724180005137,2.3186,2600.5,2600.0,2.3775916]
[1724180005446,2.3186,2600.5,2599.8,17.91393601]
[1724180005648,2.3186,2600.5,2599.9,1.63]
[1724180005951,0.15879667,2600.4,2599.9,1.63]
[1724180007908,0.15879667,2600.4,2599.8,17.91393601]
[1724180008108,0.15879667,2600.4,2599.8,21.64925155]
[1724180008350,2.3186,2600.5,2599.8,21.64925155]
[1724180009725,0.04790302,2600.4,2599.8,21.64925155]
[1724180010047,2.2576,2600.3,2599.8,21.64925155]
[1724180010464,0.15876872,2600.2,2599.8,21.64925155]
[1724180010637,0.15876872,2600.2,2599.9,3.06892515]
[1724180010835,2.2576,2600.3,2599.9,3.06892515]
[1724180011070,0.15869657,2600.2,2599.9,3.06892515]
[1724180011422,2.2576,2600.3,2599.9,3.06892515]
[1724180011671,0.1587137,2600.2,2599.9,3.06892515]
[1724180011820,0.1587137,2600.2,2600.0,2.09828612]
[1724180012017,2.2576,2600.3,2600.0,2.09828612]
[1724180012325,0.15864155,2600.2,2600.0,2.09828612]
[1724180012741,2.2576,2600.3,2600.0,2.09828612]
[1724180013069,0.15864155,2600.2,2600.0,2.09828612]
[1724180013471,2.2576,2600.3,2600.0,2.09828612]
[1724180013819,4.1068,2600.5,2600.0,2.09828612]
[1724180014067,0.15872452,2600.4,2600.1,0.51672113]
[1724180015324,2.4768,2600.5,2600.1,0.51672113]
[1724180015857,0.15862289,2600.4,2600.1,0.51672113]
[1724180016534,0.15862289,2600.4,2600.0,2.48398612]
[1724180017677,0.15862289,2600.4,2600.0,6.33013612]
[1724180017880,2.4768,2600.5,2600.0,6.33013612]
[1724180018086,2.4768,2600.5,2600.0,2.48398612]
[1724180018381,0.15874371,2600.4,2600.0,2.48398612]
[1724180019365,0.20664673,2600.4,2599.8,17.91393601]
[1724180019765,2.4417,2600.3,2599.8,17.91393601]
[1724180020155,0.15875001,2600.2,2599.8,17.91393601]
[1724180020493,2.4417,2600.3,2599.8,17.91393601]
[1724180020869,0.15875857,2600.2,2599.7,11.25658]
[1724180021068,0.15875857,2600.2,2599.8,1.368138]
[1724180021382,2.4417,2600.3,2599.8,1.368138]
[1724180021772,0.1587527,2600.2,2599.8,1.368138]
[1724180022084,2.4417,2600.3,2599.8,1.368138]
[1724180022451,0.15870133,2600.2,2599.8,1.368138]
[1724180022658,0.15870133,2600.2,2599.9,1.2624718]
[1724180022868,2.4417,2600.3,2599.9,1.2624718]
[1724180023069,0.15873689,2600.1,2599.9,1.2624718]
[1724180023273,2.4417,2600.3,2599.9,1.2624718]
[1724180023658,0.1587121,2600.2,2599.9,1.2624718]
[1724180023991,2.4417,2600.3,2599.9,1.2624718]
[1724180024337,0.1587121,2600.2,2599.9,1.2624718]
[1724180024742,2.4417,2600.3,2599.9,1.2624718]
[1724180025164,0.15864361,2600.2,2599.9,1.2624718]
[1724180025488,2.4417,2600.3,2599.9,1.2624718]
[1724180025847,0.15866073,2600.2,2599.9,1.2624718]
[1724180026043,2.4417,2600.3,2599.9,1.2624718]
[1724180026243,0.15866073,2600.2,2599.9,1.2624718]
[1724180026547,2.4417,2600.3,2599.9,1.2624718]
[1724180026874,0.15866073,2600.2,2599.9,1.2624718]
[1724180027055,0.15866073,2600.2,2600.0,0.51088818]
[1724180027255,2.3647,2600.5,2600.0,0.51088818]
[1724180027773,0.15873514,2600.4,2600.0,0.51088818]
[1724180030147,0.15873514,2600.4,2600.0,6.69559818]
[1724180030587,3.0,2600.6,2600.0,6.69559818]
[1724180030793,3.0,2600.6,2600.1,1.382005]
[1724180030993,0.15877558,2600.5,2600.2,3.84578]
[1724180031295,2.3359,2600.7,2600.2,3.84583]
[1724180031651,0.15862167,2600.6,2600.2,3.84583]
[1724180032077,0.15862167,2600.6,2600.1,6.857995]
[1724180032272,0.15862167,2600.6,2600.2,1.00932832]
[1724180033049,2.3359,2600.7,2600.2,1.00932832]
[1724180033407,0.40210456,2600.9,2600.2,1.00932832]
[1724180033553,2.3359,2601.0,2600.3,7.81437]
[1724180033554,0.15860847,2600.6,2600.3,7.81437]
[1724180033756,2.3359,2601.2,2600.4,3.84556]
[1724180033952,5.3359,2601.2,2600.5,1.63]
[1724180034164,0.15870093,2601.1,2600.5,1.63]
[1724180034494,0.15870093,2601.1,2600.5,2.834563]
[1724180035582,2.3359,2601.2,2600.5,2.834563]
[1724180035792,0.15868514,2601.0,2600.5,2.834563]
[1724180036001,0.15872661,2601.1,2600.5,2.834563]
[1724180036153,2.59636078,2600.9,2600.3,2.7244]
[1724180036355,2.4377,2600.9,2600.1,7.73809]
[1724180036588,0.158622,2600.8,2600.1,7.73809]
[1724180036799,2.4377,2600.9,2600.1,7.73809]
[1724180036975,2.4377,2600.9,2600.2,1.93799]
[1724180037694,2.4377,2600.9,2600.2,5.78383]
[1724180038695,2.4377,2600.9,2600.2,5.78378]
[1724180039254,2.4377,2600.9,2600.2,5.78377]
[1724180039452,2.4377,2600.9,2600.3,3.84565]
[1724180039683,0.15872568,2600.8,2600.4,0.962942]
[1724180040194,0.15872568,2600.8,2600.2,1.93799]
[1724180040891,0.15872568,2600.8,2600.2,5.78378]
[1724180041096,0.15872568,2600.8,2600.3,3.84569]
[1724180041989,0.15872568,2600.8,2600.4,3.84554]
[1724180042192,0.15872568,2600.8,2600.5,2.298]
[1724180042422,2.4187,2601.1,2600.5,2.298]
[1724180042423,3.0,2601.0,2600.6,0.614354]
[1724180042644,3.0,2601.0,2600.5,6.14335]
[1724180042645,2.4187,2601.1,2600.5,6.14335]
[1724180042852,0.15887317,2600.9,2600.6,3.84519]
[1724180042991,0.15890608,2601.0,2600.7,1.63]
[1724180043333,2.70999145,2601.4,2600.6,8.07616]
[1724180043334,1.63,2601.3,2600.6,3.84523]
[1724180043532,0.15888718,2600.9,2600.7,0.777323]
[1724180043752,1.63,2601.3,2600.7,0.777323]
[1724180044055,2.70999145,2601.4,2600.7,0.777323]
[1724180044334,3.15902922,2601.3,2600.7,2.407323]
[1724180044491,0.15902922,2601.3,2600.9,1.63]
[1724180044693,0.15902922,2601.3,2601.0,4.625245]
[1724180044931,2.2699,2601.6,2601.0,0.780575]
[1724180045098,2.2699,2601.6,2600.9,1.63]
[1724180045429,0.15921084,2601.5,2600.9,1.63]
[1724180047490,0.15921084,2601.5,2600.9,5.47482]
[1724180048928,0.15921084,2601.5,2601.0,3.84467]
[1724180050841,0.15921084,2601.5,2601.3,1.63]
[1724180051045,0.15921084,2601.5,2601.4,0.788586]
[1724180051214,2.4711,2601.9,2601.4,4.632656]
[1724180051418,0.15913744,2601.5,2601.4,4.632656]
[1724180051600,2.4711,2601.9,2601.5,3.84392]
[1724180051941,0.15927681,2601.8,2601.5,7.68784]
[1724180052244,0.40203455,2602.4,2601.7,9.31728]
[1724180052448,0.40203455,2602.4,2601.7,5.47364]
[1724180053240,0.40203455,2602.4,2601.7,1.63]
[1724180053463,3.40203455,2602.4,2601.7,1.63]
[1724180053679,0.40203455,2602.4,2601.7,1.63]
[1724180053946,3.40203455,2602.4,2601.7,1.25073718]
[1724180054247,3.40203455,2602.4,2601.7,2.88073718]
[1724180054599,3.40203455,2602.4,2601.7,1.25073718]
[1724180055802,3.40203455,2602.4,2601.9,3.84334]
[1724180056007,3.0,2602.6,2602.0,0.628874]
[1724180056223,2.3642,2602.7,2602.0,0.628874]
[1724180056419,5.3642,2602.7,2602.0,0.628874]
[1724180056648,0.15954842,2602.6,2602.0,0.628874]
[1724180056821,3.15954842,2602.6,2602.0,0.628874]
[1724180059136,3.15954842,2602.6,2602.1,6.33244]
[1724180059378,0.15954842,2602.6,2602.2,0.6961314]
[1724180059742,3.40199703,2602.8,2602.2,0.6961314]
[1724180059943,0.15427374,2602.5,2602.2,0.6961314]
[1724180060154,0.40199703,2602.8,2602.2,0.6961314]
[1724180060352,0.15422281,2602.4,2602.3,0.31855314]
[1724180060551,0.40199703,2602.8,2602.3,0.31855314]
[1724180060768,0.15425797,2602.4,2602.3,0.31855314]
[1724180060982,0.40199703,2602.8,2602.3,0.31855314]
[1724180061189,0.15425797,2602.4,2602.3,0.31855314]
[1724180061357,0.40199703,2602.8,2602.3,0.31855314]
[1724180061560,0.15425797,2602.4,2602.3,0.31855314]
[1724180061759,0.40199703,2602.8,2602.3,0.31855314]
[1724180061963,0.15425797,2602.4,2602.1,2.4894]
[1724180062270,0.15432012,2602.3,2602.1,2.4894]
[1724180062477,2.38880302,2602.7,2602.1,2.4894]
[1724180062787,0.15429579,2602.2,2602.1,2.4894]
[1724180062995,2.38880302,2602.7,2602.1,0.24894]
[1724180063203,2.38880302,2602.7,2601.9,2.4074]
[1724180063204,5.3409,2602.7,2601.9,2.4074]
[1724180063406,0.1544273,2602.6,2601.9,2.4074]
[1724180068803,2.41810302,2602.5,2601.7,9.6982]
[1724180069310,2.41810302,2602.5,2601.7,7.41]
[1724180069311,2.2688,2602.3,2601.7,7.41]
[1724180069461,0.04790302,2602.2,2601.7,7.41]
[1724180069663,0.15431786,2602.1,2601.7,7.41]
[1724180070759,2.31670302,2602.3,2601.7,7.41]
[1724180070999,0.15428498,2602.0,2601.7,7.41]
[1724180071203,2.31670302,2602.3,2601.5,20.36423601]
[1724180071375,0.15425209,2601.9,2601.5,23.94903061]
[1724180071572,2.31670302,2602.3,2601.5,23.94903061]
[1724180071785,0.1542192,2601.8,2601.5,23.94903061]
[1724180072102,2.31670302,2602.3,2601.5,23.94903061]
[1724180072317,0.15428244,2601.7,2601.5,23.94903061]
[1724180072523,2.31670302,2602.3,2601.6,2.81787206]
[1724180072804,2.2688,2602.3,2601.6,2.81787206]
[1724180074465,2.2688,2602.3,2601.5,6.29422]
[1724180075167,2.2688,2602.3,2601.7,3.84356]
[1724180075401,5.4198,2602.5,2601.8,2.3708]
[1724180075774,5.4198,2602.5,2601.8,3.376603]
[1724180076574,3.0,2602.5,2601.9,3.84334]
[1724180076946,2.0300497,2602.6,2601.8,7.220073]
[1724180077073,3.4020497,2602.6,2601.9,5.47132]
[1724180077267,3.4020497,2602.6,2602.1,2.471]
[1724180078250,5.07795272,2602.6,2601.9,2.6931]
[1724180078565,3.44995272,2602.6,2601.9,2.6931]
[1724180080570,3.44995272,2602.6,2601.9,2.3074]
[1724180082518,6.12347,2602.4,2601.7,7.41]
[1724180082826,6.17137302,2602.4,2601.7,7.41]
[1724180082969,3.0,2602.3,2601.7,7.41]
[1724180085303,0.04790302,2602.2,2601.7,7.41]
[1724180085817,2.2508,2602.1,2601.7,7.41]
[1724180086315,2.2508,2602.1,2601.3,10.0645]
[1724180086471,0.15464929,2602.0,2601.3,10.0645]
[1724180087609,2.2508,2602.1,2601.3,10.0645]
[1724180088115,0.15464929,2602.0,2601.3,10.0645]
[1724180089771,0.15464929,2602.0,2601.3,11.63981]
[1724180089976,2.2965,2602.3,2601.4,7.269851]
[1724180090219,0.15459074,2601.9,2601.4,7.269851]
[1724180090526,0.15455786,2601.8,2601.4,7.269851]
[1724180090682,0.15455786,2601.8,2601.5,5.7348861]
[1724180090874,5.2965,2602.3,2601.5,1.8909661]
[1724180091293,0.15459445,2602.2,2601.5,1.8909661]
[1724180092318,2.3112,2602.1,2601.5,1.8909661]
[1724180092813,0.15464669,2602.0,2601.5,1.8909661]
[1724180093189,0.15464669,2602.0,2601.6,0.41527661]
[1724180093773,3.0,2602.2,2601.6,0.41527661]
[1724180094011,0.15461011,2601.9,2601.6,0.41527661]
[1724180094171,3.0,2602.2,2601.6,0.41527661]
[1724180094527,5.3578,2602.3,2601.6,0.41527661]
[1724180094692,0.1546736,2602.2,2601.6,0.41527661]
[1724180094879,3.1546736,2602.2,2601.6,0.41527661]
[1724180095218,0.15465367,2602.1,2601.6,0.41527661]
[1724180096221,0.15465367,2602.1,2601.7,2.2626]
[1724180098208,0.15465367,2602.1,2601.7,2.53038766]
[1724180101923,0.15465367,2602.1,2601.9,1.628]
[1724180102124,0.40201764,2602.4,2601.9,1.628]
[1724180102323,0.40201764,2602.4,2601.7,4.54408766]
[1724180102625,0.15457262,2602.3,2601.7,4.54408766]
[1724180102824,0.15457262,2602.3,2601.7,2.53038766]